[Event "GCT Superbet Rapid Poland 2025"]
[Site "Warsaw"]
[Date "2025.04.26"]
[Round "1.1"]
[White "Fedoseev, Vladimir"]
[Black "Firouzja, Alireza"]
[Result "1/2-1/2"]
[ECO "E06"]
[WhiteElo "2739"]
[BlackElo "2757"]
[Annotator "TA"]
[PlyCount "158"]
[EventDate "2025.??.??"]
[EventType "rapid"]
[TimeControl "1500+10"]

{[%evp 12,158,7,7,9,3,1,6,14,14,17,0,3,7,23,-4,11,12,20,11,29,0,16,20,23,22,102,101,89,93,157,160,144,152,190,205,190,182,193,164,183,190,205,214,191,172,179,166,172,170,159,126,121,119,135,124,133,105,166,152,176,169,168,158,167,150,154,150,183,148,155,151,140,138,245,248,244,244,248,258,237,244,278,171,191,177,144,79,84,87,263,201,243,249,243,239,206,213,265,259,243,234,260,235,202,18,18,8,17,15,355,325,504,68,77,75,593,593,648,578,564,565,1191,1126,746,1122,729,729,993,1029,714,8,8,8,8,0,8,0,0,0,0,0,0,0,0,0,0,0,0]} 1. d4 {[%emt 0:00:02]} Nf6 {[%emt 0:00:02]} 2. c4 {[%emt 0:00:02]} e6 {[%emt 0:00:00]} 3. Nf3 {[%emt 0:00:03]} d5 {[%emt 0:00:02]} 4. g3 {[%emt 0:00:03]} Be7 {[%emt 0:00:16]} 5. Bg2 {[%emt 0:00:03]} O-O {[%emt 0:00:02]} 6. Nc3 {[%emt 0:00:02]} Nbd7 {[%emt 0:00:23]} 7. Qd3 {[%emt 0:00:07]} b6 {[%emt 0:00:11] E06: Closed Catalan: Early deviations.} 8. cxd5 {[%emt 0:00:09]} Nxd5 {[%emt 0:00:06]} 9. O-O {[%emt 0:00:04]} Bb7 {[%emt 0:00:16]} 10. Rd1 {[%emt 0:00:09]} c5 {[%emt 0:01:10] 10...c5 is the modern continuation.} 11. Nxd5 {[%emt 0:01:17]} exd5 {[%emt 0:00:07]} 12. dxc5 {[%emt 0:01:11]} bxc5 {[%emt 0:01:48]} 13. Bf4 {[%emt 0:00:13]} Qb6 $146 {[%emt 0:01:49][%cal Oe7f6]} (13... Re8 14. b3 a5 15. Rac1 a4 16. Ne1 Nf6 17. Bg5 axb3 18. Qxb3 Rb8 19. Bxf6 Bxf6 20. Bxd5 Bxd5 21. Qxd5 Qxd5 22. Rxd5 Rxe2 23. Rdxc5 {0-1 Firouzja,A (2702)-Aronian,L (2758) chess.com Speed blitz 2019 (1.10)}) ({RR} 13... Re8 14. b3 a5 15. Rac1 a4 16. Ne1 Nf6 17. Bg5 axb3 18. Qxb3 Rb8 19. Bxf6 Bxf6 20. Bxd5 Bxd5 21. Qxd5 Qxd5 22. Rxd5 Rxe2 23. Rdxc5 g6 24. R5c2 Re7 25. Nf3 Kg7 26. Kg2 Ra8 27. Re1 Rd7 28. Ree2 {Firouzja,A (2702)-Aronian,L (2758) Chess.com INT 2019 0-1 (53)}) 14. Qb3 {[%emt 0:02:22]} Nf6 {[%emt 0:00:27]} 15. Ne5 {[%emt 0:00:32][%cal Oe5c4]} Rfe8 {[%emt 0:00:22]} 16. Bf3 {[%emt 0:01:11][%cal Oe5c4]} Bf8 {[%emt 0:02:01] [#]} 17. Nc4 $1 {[%emt 0:02:21]} Qa6 {[%emt 0:11:33][%cal Ob7c6]} 18. Ne3 {[%emt 0:03:41]} c4 {[%emt 0:04:04] [#]} (18... Rad8 $11) 19. Nxc4 $1 $16 {[%emt 0:01:35][%csl Oa7,Od5][%mdl 512] Black has weak pawns} Bc6 {[%emt 0:00:02][%cal Oc6a4]} 20. Ne3 {[%emt 0:00:16][%cal Re3d5]} Ba4 {[%emt 0:00:24]} (20... Rad8 $142) 21. Qd3 $1 {[%emt 0:00:03]} Bb5 {[%emt 0:00:06]} 22. Qd2 {[%emt 0:02:44]} Rad8 {[%emt 0:00:21]} 23. a4 $1 {[%emt 0:00:34]} (23. Bxd5 Bc5 24. a4 Bxe2 $17) (23. Nxd5 $6 Nxd5 24. Bxd5 Bxe2 $14 (24... Rxe2 $2 25. Bxf7+ Kxf7 26. Qxd8 $18) (24... Bc6 $2 25. e4 $18)) 23... Bc4 {[%emt 0:02:36]} 24. Nxc4 {[%emt 0:02:36]} Qxc4 {[%emt 0:00:02]} 25. Qd3 {[%emt 0:01:35]} Qb4 {[%emt 0:00:18]} 26. Qb5 {[%emt 0:00:06]} h6 {[%emt 0:00:17]} 27. Qxb4 {[%emt 0:01:03]} (27. Bxd5 $2 Qxb5 28. Bxf7+ Kxf7 $19) 27... Bxb4 {[%emt 0:00:01]} 28. a5 {[%emt 0:00:03]} Rc8 {[%emt 0:00:18]} 29. Rd3 {[%emt 0:01:05]} (29. Bxd5 Nxd5 30. Rxd5 Rxe2 $11) 29... g5 {[%emt 0:00:23]} 30. Be3 {[%emt 0:00:22] A strong pair of Bishops.} Bc5 {[%emt 0:00:02]} 31. Bd4 {[%emt 0:01:01]} (31. Bxd5 $6 Bxe3 32. fxe3 Nxd5 33. Rxd5 Rxe3 $14) 31... Bxd4 {[%emt 0:00:12]} 32. Rxd4 {[%emt 0:00:01]} Rc2 {[%emt 0:00:34]} 33. b4 {[%emt 0:00:07]} (33. Bxd5 $6 Rexe2 34. Rf1 Rxb2 $11) 33... Rb8 {[%emt 0:00:07]} 34. Rb1 {[%emt 0:01:24]} Ra2 {[%emt 0:00:15]} (34... Rc5 $16) 35. Rc1 $18 {[%emt 0:00:16][%cal Oc1c7]} Rb2 {[%emt 0:00:10]} 36. Bxd5 {[%emt 0:00:44]} R2xb4 {[%emt 0:00:10]} 37. Rxb4 {[%emt 0:00:31]} Rxb4 {[%emt 0:00:01][%mdl 4096] Endgame KRB-KRN. White is a pawn up.} 38. Rc8+ {[%emt 0:00:03]} Kg7 {[%emt 0:00:03]} 39. Bc4 {[%emt 0:00:21]} Rb1+ {[%emt 0:00:14]} 40. Kg2 {[%emt 0:00:03]} Rc1 {[%emt 0:00:01]} 41. Kf3 {[%emt 0:00:11] Prevents Ne4} Rc3+ {[%emt 0:00:16]} 42. e3 {[%emt 0:00:04]} g4+ {[%emt 0:00:24]} (42... h5 $16 43. Rc7 g4+ 44. Ke2 Ne4) 43. Kf4 {[%emt 0:00:35]} Rc2 {[%emt 0:00:04]} 44. Ke5 {[%emt 0:00:01]} Nd7+ {[%emt 0:00:17]} 45. Kd4 $1 {[%emt 0:00:30]} (45. Kd6 $6 Rd2+ 46. Kc7 Ne5 $14) 45... Rd2+ {[%emt 0:00:09]} 46. Kc3 {[%emt 0:00:35]} Rxf2 {[%emt 0:00:09][%cal Od7e5]} 47. Rc7 {[%emt 0:00:04]} Ne5 {[%emt 0:00:01]} 48. Bd5 {[%emt 0:00:04]} (48. Rxa7 Nxc4 49. Kxc4 Rxh2 $11) 48... a6 {[%emt 0:00:16][%cal Of2f1]} 49. Re7 {[%emt 0:00:11]} (49. Ra7 $142) 49... Rf5 $16 {[%emt 0:00:16]} 50. e4 {[%emt 0:00:21] White has more active pieces.} Rg5 {[%emt 0:00:10]} (50... Rh5 $16 51. Kb4 Kf8) 51. Ra7 {[%emt 0:00:14]} Rg6 {[%emt 0:00:10]} 52. Bb7 $1 {[%emt 0:00:02]} Rd6 {[%emt 0:00:10] ...Rd7 would now be deadly.} 53. Rxa6 {[%emt 0:00:05]} (53. Bxa6 Nc6 54. e5 Rg6 $15) 53... Rd3+ {[%emt 0:00:01]} 54. Kb4 {[%emt 0:00:23]} Rd2 {[%emt 0:00:01]} 55. Bd5 {[%emt 0:00:12]} Rxh2 {[%emt 0:00:02]} 56. Rd6 $1 {[%emt 0:00:23]} Rh1 {[%emt 0:00:09]} 57. a6 {[%emt 0:00:10]} Ra1 {[%emt 0:00:02]} 58. Bb3 $2 {[%emt 0:00:01]} (58. Bb7 $18) 58... h5 $11 {[%emt 0:00:36][%cal Oh5h4]} 59. Ba4 {[%emt 0:00:06]} Rb1+ {[%emt 0:00:08]} 60. Kc5 {[%emt 0:00:26]} Rb8 $2 {[%emt 0:00:17][%mdl 8192]} (60... Rc1+ $11 {and Black has nothing to worry.} 61. Kb4 h4) 61. Rd5 $18 {[%emt 0:00:05]} Kf6 {[%emt 0:00:12]} (61... f6 {might work better.} 62. Bb5 h4) 62. Bc6 $2 {[%emt 0:00:10]} (62. Rd6+ Kg7 63. Rd5 f6 $18) (62. a7 $18 Rg8 63. Bb5) 62... Rc8 $14 {[%emt 0:00:11]} 63. Rd6+ {[%emt 0:00:10]} Ke7 $2 {[%emt 0:00:01][%mdl 8192]} (63... Kg5 $16 {stays breathing.}) 64. a7 $18 {[%emt 0:00:02]} h4 {[%emt 0:00:21]} 65. a8=Q {[%emt 0:00:15]} ({Not} 65. a8=B hxg3 66. Rd2 Rh8 $11) 65... Rxa8 {[%emt 0:00:02]} 66. Bxa8 {[%emt 0:00:01]} hxg3 {[%emt 0:00:04] [#]} 67. Rd2 $1 {[%emt 0:00:02]} Kf6 {[%emt 0:00:09]} 68. Rg2 {[%emt 0:00:42]} Kg5 {[%emt 0:00:09]} 69. Rxg3 {[%emt 0:00:04]} Kf4 {[%emt 0:00:02]} 70. Rg1 {[%emt 0:00:03]} g3 {[%emt 0:00:06] [#]} 71. Bd5 $2 {[%emt 0:00:08]} (71. Kd6 $1 $18 {White threatens Rf1+ and mate.} f6 72. Ke7) 71... Nf3 $11 {[%emt 0:00:18] The position is equal.} 72. Rg2 {[%emt 0:00:12]} (72. Rxg3 Kxg3 73. Bxf7 Kf4 74. Kd5) 72... Nh4 $1 {[%emt 0:00:12]} 73. Rg1 {[%emt 0:00:16]} (73. Rxg3 Kxg3 74. Bxf7 Nf3 75. Kd5) 73... Nf3 {[%emt 0:00:05]} 74. Rc1 {[%emt 0:00:19][%cal Oe4e5] Strongly threatening e5!.} (74. Rxg3 {simplifies} Kxg3 75. Bxf7 Kf4 76. Kd5) 74... g2 {[%emt 0:00:06]} 75. e5 {[%emt 0:00:05]} g1=Q+ {[%emt 0:00:12]} 76. Rxg1 {[%emt 0:00:02]} Nxg1 {[%emt 0:00:01]} 77. Kd6 {[%emt 0:00:01]} Nf3 {[%emt 0:00:05]} 78. Bxf3 {[%emt 0:00:05]} Kxf3 {[%emt 0:00:01]} 79. e6 {[%emt 0:00:00]} fxe6 {[%emt 0:00:01] White really could win this. Weighted Error Value: White=0.15 (very precise) /Black=0.27 (precise) Loses game: 	--- 	Black=3 Missed win: 	White=2 	--- Mistake: 	White=1 	Black=5 Inaccurate: 	White=3 	Black=1 OK: 	White=24 	Black=23 Best: 	White=7 	Black=9 Strong: 	White=5 	Black=1 Brilliant: 	White=1 	---} 1/2-1/2

[Event "GCT Superbet Rapid Poland 2025"]
[Site "Warsaw"]
[Date "2025.04.26"]
[Round "1.2"]
[White "Gavrilescu, David"]
[Black "Topalov, Veselin"]
[Result "1-0"]
[ECO "C45"]
[WhiteElo "2554"]
[BlackElo "2717"]
[Annotator "TA"]
[PlyCount "137"]
[EventDate "2025.??.??"]
[EventType "rapid"]
[TimeControl "1500+10"]

{[%evp 18,137,13,0,44,-12,-4,-15,0,-1,0,-18,0,0,0,0,169,170,173,169,159,173,175,174,164,167,266,247,546,234,241,239,265,266,256,255,265,258,259,268,355,347,372,364,404,339,433,415,382,208,262,237,231,214,212,206,206,94,287,281,268,242,379,369,371,377,348,343,460,438,392,356,468,437,720,720,737,737,1127,1127,1100,1025,4893,1883,1201,1076,29954,29959,29961,29962,29961,29960,29960,29959,29960,29959,29962,29956,29959,29958,29959,29959,12821,10930,29967,29969,29967,29968,29965,29967,29961,29961,6110,6094,29958,29953,29986,29987,29987,29988,29988,560]} 1. e4 {[%emt 0:00:06]} e5 {[%emt 0:00:03]} 2. Nf3 {[%emt 0:00:08]} Nc6 {[%emt 0:00:04]} 3. d4 {[%emt 0:00:13]} exd4 {[%emt 0:00:06]} 4. Nxd4 {[%emt 0:00:05]} Bc5 {[%emt 0:00:24]} 5. Be3 {[%emt 0:00:21]} Qf6 {[%emt 0:01:03]} 6. c3 {[%emt 0:00:10]} Nge7 {[%emt 0:00:25]} 7. Bc4 {[%emt 0:00:23]} Ne5 {[%emt 0:00:22]} 8. Be2 {[%emt 0:01:43]} d6 {[%emt 0:04:00]} 9. O-O {[%emt 0:00:45]} Qg6 {[%emt 0:01:10]} 10. Kh1 {[%emt 0:00:41]} Ng4 {[%emt 0:02:08] C45: Scotch Game.} ({RR} 10... Qxe4 11. Nd2 Qg6 12. Nb5 O-O 13. Nxc7 Rb8 14. Bh5 Qf5 15. f4 Bxe3 16. fxe5 Qxe5 17. Nc4 Qc5 18. Nxe3 Qxe3 19. Re1 Qg5 20. Qxd6 Qxh5 21. Rxe7 Qg6 22. Qe5 b6 23. Nd5 Bb7 24. Nf4 Qc6 25. Re1 {Movsesian,S (2670)-Grischuk,A (2715) Kemer 2007 ½-½}) 11. Bf4 $5 {[%emt 0:06:31][%mdl 4] Leaves trodden paths.} (11. Bd2 $14) ({RR} 11. Bxg4 Bxg4 12. f3 Bd7 13. Nd2 O-O 14. b4 Bb6 15. a4 c6 16. a5 Bc7 17. Bf4 f5 18. exf5 Nxf5 19. Nxf5 Bxf5 20. Bg3 Rae8 21. Re1 Bc2 22. Qc1 h6 23. Nc4 Bb3 24. Nd2 Bc2 25. Nc4 Bd3 {Goryachkina,A (2553)-Grochal,J (2255) chess.com INT 2024 ½-½}) 11... Qxe4 $146 {[%emt 0:02:51]} (11... Qf6 12. Qd2 Ng6 13. Bg5 Nxf2+ 14. Rxf2 Qxf2 15. Bb5+ {1-0 Izso,D (2262)-Lengyel,B (2266) Budapest FS05 IM-A 2010 (2)}) ({RR} 11... O-O 12. Nd2 f5 13. f3 Ne5 14. N2b3 Bb6 15. exf5 Nxf5 16. Bxe5 Ne3 17. Qc1 Qxg2# {0-1 (17) Smieszniak,B-Tobolski,J (2006) Leba 2008}) ({RR} 11... O-O 12. b4 Bb6 13. f3 Ne5 14. Na3 a5 15. Nac2 axb4 16. cxb4 N7c6 17. Nxc6 Nxc6 18. a3 Be6 19. Be3 Bxe3 20. Nxe3 Qf6 21. Bc4 Bxc4 22. Nxc4 Qd4 23. Qxd4 Nxd4 24. Rfd1 Nc6 25. Ne3 Ne7 26. Kg1 {Munoz,C (2034)-Castro,A (1960) San Salvador 2008 ½-½ (45)}) ({RR} 11... Qf6 12. Qd2 Ng6 13. Bg5 Nxf2+ 14. Rxf2 Qxf2 15. Bb5+ {1-0 (15) Izso,D (2262)-Lengyel,B (2266) Budapest 2010}) 12. Bg3 {[%emt 0:04:29] White sacrificed a pawn. A sharp opening} Qg6 {[%emt 0:00:37] The position is equal.} 13. Nb5 {[%emt 0:01:45]} Bb6 {[%emt 0:00:53] Threatening ...h5.} 14. Bxd6 $1 {[%emt 0:00:54]} cxd6 {[%emt 0:02:24]} 15. Nxd6+ {[%emt 0:00:04]} Kf8 {[%emt 0:00:01]} 16. Nxc8 {[%emt 0:00:10]} Nxf2+ $2 {[%emt 0:00:15] [#]} (16... h5 $1 $11 17. Nxb6 Qxb6) 17. Rxf2 $1 $18 {[%emt 0:00:08][%mdl 512]} Rxc8 {[%emt 0:00:02]} 18. Bh5 $40 {[%emt 0:01:45][%mdl 128] White attacks with force.} Bxf2 {[%emt 0:01:19]} 19. Bxg6 {[%emt 0:00:03]} hxg6 {[%emt 0:00:02]} 20. Qf3 {[%emt 0:01:45][%csl Bb7,Bf2] Against Nf5} Bb6 {[%emt 0:01:48]} 21. Nd2 {[%emt 0:00:04]} Nf5 {[%emt 0:00:09]} (21... Rd8 $142) 22. g4 {[%emt 0:01:38]} (22. Qxb7 $2 Ng3#) 22... Bc7 $2 {[%emt 0:02:25]} (22... Nd6 23. Qd5 Bc7) 23. Nf1 {[%emt 0:00:16]} (23. gxf5 $142 Rxh2+ 24. Kg1 Rxd2 25. fxg6 Bb6+ 26. Kh1) 23... Nd6 {[%emt 0:00:06]} 24. Re1 {[%emt 0:00:09]} g5 {[%emt 0:01:15]} 25. Kg2 {[%emt 0:01:07]} Rh6 {[%emt 0:00:15]} 26. Ng3 {[%emt 0:00:31]} Rd8 {[%emt 0:01:12]} 27. Re2 {[%emt 0:00:06]} Rf6 {[%emt 0:01:45] [#]} 28. Qe3 {[%emt 0:01:26][%csl Ba7,Bg5]} Re8 {[%emt 0:01:14] Prevents Qe7+.} 29. Qxa7 {[%emt 0:00:09]} (29. Qxg5 $2 Rxe2+ 30. Nxe2 Rf2+ 31. Kh1 Rxe2 $19) 29... Rxe2+ {[%emt 0:00:30]} 30. Nxe2 {[%emt 0:00:01]} g6 {[%emt 0:00:07]} 31. Qd4 {[%emt 0:01:26]} Bd8 {[%emt 0:00:23]} 32. c4 {[%emt 0:00:12] Black must now prevent c5.} Re6 {[%emt 0:00:40]} 33. Qh8+ {[%emt 0:00:02]} Ke7 {[%emt 0:00:01]} 34. Nc3 {[%emt 0:00:01]} Nxc4 {[%emt 0:00:16]} 35. Nd5+ {[%emt 0:00:31]} Kd7 {[%emt 0:00:01]} 36. Qd4 {[%emt 0:00:07]} Nd6 {[%emt 0:00:01]} 37. Nb6+ {[%emt 0:01:04]} (37. Qa4+ $18 {has better winning chances.} Kc8 38. Nc3) 37... Ke8 $2 {[%emt 0:00:47] This move loses the game for Black.} (37... Bxb6 $16 38. Qxb6 Re4) 38. Nc4 {[%emt 0:00:08]} Nxc4 {[%emt 0:00:06]} 39. Qxc4 {[%emt 0:00:01][%mdl 4096] Endgame KQ-KRB} b6 {[%emt 0:00:05]} (39... Kd7 {was worth a try.} 40. Qb5+ Kc8) 40. a4 {[%emt 0:00:12]} Re5 {[%emt 0:00:03]} 41. b4 {[%emt 0:00:04]} Ke7 {[%emt 0:00:02]} 42. h3 {[%emt 0:00:05]} Ke8 {[%emt 0:00:13]} 43. Qc6+ {[%emt 0:00:03]} Ke7 {[%emt 0:00:02]} 44. Kf3 {[%emt 0:00:02]} Re6 {[%emt 0:00:11]} 45. Qb7+ {[%emt 0:00:04]} Ke8 {[%emt 0:00:05] [#]} (45... Kf8 $142 46. Qb8 Re8 47. Qd6+ Kg7 48. Qd4+ Kg8) 46. a5 $1 {[%emt 0:00:09][%mdl 512]} bxa5 {[%emt 0:00:02]} 47. bxa5 {[%emt 0:00:01]} Bxa5 {[%emt 0:00:01]} 48. Qb5+ {[%emt 0:00:11]} Kf8 {[%emt 0:00:06]} 49. Qxa5 {[%emt 0:00:01] KQ-KR} f6 {[%emt 0:00:02]} 50. Qd8+ {[%emt 0:00:05]} Kf7 {[%emt 0:00:05]} 51. Qh8 {[%emt 0:00:05]} Ra6 {[%emt 0:00:46]} 52. Qh7+ {[%emt 0:00:11]} Ke6 {[%emt 0:00:01]} 53. Qxg6 {[%emt 0:00:22]} Ra3+ {[%emt 0:00:01]} 54. Kg2 {[%emt 0:00:06]} Ra2+ {[%emt 0:00:01]} 55. Kf1 {[%emt 0:00:02]} Ra1+ {[%emt 0:00:24]} 56. Ke2 {[%emt 0:00:02]} Ra2+ {[%emt 0:00:01]} 57. Kd1 {[%emt 0:00:03]} Ra1+ {[%emt 0:00:04]} 58. Kc2 {[%emt 0:00:03]} Ra2+ {[%emt 0:00:01]} 59. Kd3 {[%emt 0:00:57]} Ra3+ {[%emt 0:00:06]} 60. Kd4 {[%emt 0:00:17] White threatens Qe8+ and mate.} Ra4+ {[%emt 0:00:45]} 61. Kc5 {[%emt 0:00:08][%cal Rg6e8]} Ra5+ {[%emt 0:00:01]} 62. Kc6 {[%emt 0:00:26][%cal Rg6e8]} Ra6+ {[%emt 0:00:02]} 63. Kc7 {[%emt 0:00:04]} Ra7+ {[%emt 0:00:03]} 64. Kb6 {[%emt 0:00:01]} Rd7 {[%emt 0:00:15]} 65. Qe8+ {[%emt 0:00:29]} Kd6 {[%emt 0:00:01]} 66. Qf8+ {[%emt 0:00:05] White mates.} Ke6 {[%emt 0:00:03]} 67. Kc6 {[%emt 0:00:01]} Re7 {[%emt 0:00:07]} 68. Qg8+ {[%emt 0:00:13]} Ke5 {[%emt 0:00:01]} 69. Qd5+ {[%emt 0:00:04] Weighted Error Value: White=0.22 (precise) /Black=0.77 Loses game: 	--- 	Black=2 Mistake: 	White=3 	Black=4 Inaccurate: 	White=1 	Black=3 OK: 	White=16 	Black=9 Best: 	White=2 	Black=6 Strong: 	White=1 	--- Brilliant: 	White=1 	---} (69. Qb8+ $142 Ke4 70. Qb4+ Kf3 71. Qxe7 Kg2 72. Qxf6 (72. Qe3 Kf1 73. Qd2 f5 74. gxf5 Kg1 75. f6 Kf1 76. f7 Kg1 77. f8=Q g4 78. Qff2+ Kh1 79. Qh2#) 72... Kxh3 73. Qf2 (73. Qxg5 Kg3 74. Qf5 Kh4 75. g5 Kh5 76. g6+ Kh6 77. Qf6 Kh5 78. g7 Kg4 79. g8=Q+ Kh5 80. Qfh8#) 73... Kxg4 74. Kd5) 1-0

[Event "GCT Superbet Rapid Poland 2025"]
[Site "Warsaw"]
[Date "2025.04.26"]
[Round "1.3"]
[White "Duda, Jan-Krzysztof"]
[Black "Aronian, Levon"]
[Result "1/2-1/2"]
[ECO "C84"]
[WhiteElo "2739"]
[BlackElo "2747"]
[Annotator "TA"]
[PlyCount "116"]
[EventDate "2025.??.??"]
[EventType "rapid"]
[TimeControl "1500+10"]

{[%evp 13,116,42,37,48,43,53,56,52,49,44,33,37,47,15,18,18,19,18,19,25,22,14,16,0,0,0,0,0,11,0,51,47,41,39,44,11,11,11,31,25,54,49,49,54,50,50,108,108,108,72,69,69,104,45,54,17,4,0,0,0,8,0,26,26,26,26,26,0,0,0,0,0,0,0,0,0,0,0,0,0,0,0,0,0,0,0,0,0,0,0,0,0,0,0,0,0,0,0,0,0,0,0,0,0,0]} 1. e4 {[%emt 0:00:03]} e5 {[%emt 0:00:05]} 2. Nf3 {[%emt 0:00:03]} Nc6 {[%emt 0:00:01]} 3. Bb5 {[%emt 0:00:03]} a6 {[%emt 0:00:02]} 4. Ba4 {[%emt 0:00:02]} Nf6 {[%emt 0:00:02]} 5. O-O {[%emt 0:00:03]} Nxe4 {[%emt 0:00:09]} 6. d4 {[%emt 0:00:04]} Be7 {[%emt 0:00:13]} 7. Re1 {[%emt 0:00:19][%cal Bf1e1,Be1e4,Be4e5][%mdl 32]} b5 {[%emt 0:00:02]} 8. Rxe4 {[%emt 0:00:05] [#] C84: Closed Ruy Lopez: Unusual White 6th moves.} (8. dxe5 Nxf2 9. Kxf2 bxa4 $15) 8... d5 {[%emt 0:00:02]} 9. Nxe5 {[%emt 0:00:07]} Nxe5 {[%emt 0:00:02]} 10. Rxe5 {[%emt 0:00:02] White is slightly better.} bxa4 {[%emt 0:00:02]} 11. Qe2 {[%emt 0:00:38]} Be6 {[%emt 0:00:11]} 12. f4 {[%emt 0:00:18]} Kf8 {[%emt 0:00:05]} 13. Nc3 {[%emt 0:00:12][%cal Of4f5,Bb1c3,Bc3a4,Ba4c5][%mdl 32]} Bd6 {[%emt 0:00:33]} 14. Nxa4 {[%emt 0:00:33][%cal Oe2f2]} Qf6 {[%emt 0:00:02] [#]} 15. Be3 $1 {[%emt 0:03:24]} Bxe5 {[%emt 0:00:08]} 16. fxe5 {[%emt 0:00:02]} Qg6 {[%emt 0:00:01]} 17. Nc5 {[%emt 0:01:42][%cal Oc5d3][%mdl 1024] White has compensation.} h5 {[%emt 0:00:05] Black is weak on the dark squares} 18. h4 {[%emt 0:00:37]} (18. Nxa6 $2 {perishes.} Bg4 19. Qb5 Qxa6 $19) 18... Bg4 $146 {[%emt 0:00:29]} (18... Kg8 19. Rf1 Kh7 20. c3 Bg4 21. Qf2 Rhf8 22. Bf4 Rae8 23. Re1 Re7 24. Qg3 Qc2 {½-½ Plyasunov,D (2300)-Khayrullin,D (2399) Moscow Aeroflot op-A 2025 (7)}) ({RR} 18... Kg8 19. Rf1 Kh7 20. Bg5 Rhf8 21. Rf4 Rab8 22. b3 Rb6 23. Rf2 Kg8 24. a4 Ra8 25. Kh2 a5 26. Qf3 Rb4 27. Qf4 Rb6 28. Kg1 Rbb8 29. Kh2 Rb6 30. Kg1 Rbb8 31. Qf3 Rb4 32. Qf4 Rbb8 {½-½ (32) Wieczorek,O (2505)-Hagner,B (2361) Vrnjacka Banja SRB 2023}) ({RR} 18... Kg8 19. Rf1 Kh7 20. c3 Bg4 21. Qf2 Rhf8 22. Bf4 Rae8 23. Re1 Re7 24. Qg3 Qc2 25. Nd3 a5 26. Rc1 Qa4 27. a3 Qd7 28. Nc5 Qf5 29. b4 Ra8 30. b5 a4 31. e6 Rb8 32. Bxc7 Rxb5 33. Bd6 {Plyasunov,D (2300)-Khayrullin,D (2399) Moscow RUS 2025 ½-½ (38)}) ({RR} 18... Kg8 19. Rf1 Kh7 20. Bg5 Rhf8 21. Rf4 Rab8 22. b3 Rb6 23. Rf2 Kg8 24. a4 Ra8 25. Kh2 a5 26. Qf3 Rb4 27. Qf4 Rb6 28. Kg1 Rbb8 29. Kh2 Rb6 30. Kg1 Rbb8 31. Qf3 Rb4 32. Qf4 Rbb8 {½-½ (32) Wieczorek,O (2505)-Hagner,B (2361) Vrnjacka Banja SRB 2023}) 19. Qf2 {[%emt 0:00:44]} Kg8 {[%emt 0:00:13]} 20. Rf1 {[%emt 0:00:10]} Rb8 {[%emt 0:03:50]} 21. b3 {[%emt 0:00:42][%cal Oc5a6,Bb2b3,Bb3b4,Bb4c5][%mdl 32]} Rb6 {[%emt 0:00:01]} (21... Ra8 $11) 22. Bg5 {[%emt 0:02:23]} Rc6 {[%emt 0:00:24]} 23. Kh2 {[%emt 0:01:41]} Be6 {[%emt 0:00:52]} 24. a4 {[%emt 0:01:06]} Kh7 {[%emt 0:02:12]} 25. b4 {[%emt 0:00:11]} Re8 {[%emt 0:00:13]} 26. a5 {[%emt 0:03:20]} Kg8 {[%emt 0:00:17][%cal Oc6c5]} 27. c3 {[%emt 0:00:02]} Bg4 {[%emt 0:00:43] Space Advantage White} 28. Qa2 $1 {[%emt 0:00:39]} Rxc5 $1 {[%emt 0:04:24]} 29. bxc5 {[%emt 0:00:02]} Qc6 {[%emt 0:00:02]} ({Black should play} 29... Rb8 $14) 30. Qb3 $16 {[%emt 0:01:57]} Bd7 {[%emt 0:05:28]} 31. Rf3 {[%emt 0:00:52]} Qa8 {[%emt 0:00:43]} 32. Qc2 {[%emt 0:02:01] White is more active.} Qc6 {[%emt 0:01:36]} 33. Qa2 {[%emt 0:03:02]} (33. Qc1 $16) 33... Rb8 $14 {[%emt 0:00:50]} 34. Rg3 {[%emt 0:00:07]} Bg4 {[%emt 0:02:02]} 35. c4 {[%emt 0:00:26]} dxc4 {[%emt 0:00:10]} 36. Qxc4 {[%emt 0:00:03] Black must now prevent d5.} Qb5 {[%emt 0:00:01]} 37. Qd5 {[%emt 0:02:19]} (37. Qxb5 {simplifies} Rxb5 38. c6 Rd5 39. Rd3) 37... Qf1 {[%emt 0:01:32]} 38. Rb3 {[%emt 0:00:10]} Rxb3 {[%emt 0:00:18]} 39. Qxb3 $11 {[%emt 0:00:02][%mdl 4096] Endgame KQB-KQB. White is a pawn up.} Qe2 {[%emt 0:00:04]} 40. e6 {[%emt 0:00:55]} Bxe6 {[%emt 0:01:05] The position is equal.} (40... Qxe6 41. Qb8+ Qc8 42. Qb2 (42. Qxc8+ Bxc8 43. Kg3 c6 $15)) 41. Qb8+ {[%emt 0:00:09]} Kh7 {[%emt 0:00:02]} 42. Qxc7 {[%emt 0:00:02]} Bd5 {[%emt 0:00:07][%csl Gd5][%cal Re2g2]} 43. Qg3 {[%emt 0:00:02]} f6 {[%emt 0:00:24]} 44. Bf4 {[%emt 0:00:13]} Qe4 {[%emt 0:00:26]} 45. Qf2 {[%emt 0:00:13]} Qf5 {[%emt 0:00:13]} 46. Bg3 {[%emt 0:00:29]} Qxf2 {[%emt 0:00:03]} 47. Bxf2 {[%emt 0:00:02][%cal Og2g4] KB-KB. White is a pawn up.} Kg6 {[%emt 0:00:02]} 48. Bg3 {[%emt 0:00:11]} Kf5 {[%emt 0:00:02]} 49. Bd6 {[%emt 0:00:01]} g5 {[%emt 0:00:11]} 50. hxg5 {[%emt 0:00:06]} fxg5 {[%emt 0:00:02]} 51. Be7 {[%emt 0:00:05]} h4 {[%emt 0:00:10]} 52. g3 {[%emt 0:00:04]} Kg4 {[%emt 0:00:15]} 53. gxh4 {[%emt 0:00:04]} gxh4 {[%emt 0:00:02]} 54. Bf6 {[%emt 0:00:03]} h3 {[%emt 0:00:06]} 55. Be5 {[%emt 0:00:02]} Bc6 {[%emt 0:00:05]} 56. Bd6 {[%emt 0:00:02]} Bd5 {[%emt 0:00:01]} 57. Be5 {[%emt 0:00:01]} Bc6 {[%emt 0:00:00]} 58. Bd6 {[%emt 0:00:01]} Bd5 {Weighted Error Value: White=0.07 (flawless) /Black=0.06 (flawless)  Mistake:    	White=1   	Black=2   Inaccurate:   	White=5   	Black=3   OK:     	White=15  	Black=30   Best:    	---    	Black=2   Strong:    	White=1   	Black=1} 1/2-1/2